bitfinex-derivatives/quotes_SOLF0:USTF0_20241127
["timestamp","ask_amount","ask_price","bid_price","bid_amount"]
[1732710443097,6.7942138,233.07,232.99,2.14]
[1732710443395,6.7942138,233.05,232.99,2.14]
[1732710443693,26.03496487,233.1,232.99,2.14]
[1732710443899,6.7942138,233.01,232.99,2.14]
[1732710444092,6.7942138,233.01,232.95,2.14]
[1732710444291,6.7942138,232.99,232.95,2.14]
[1732710445200,6.7942138,232.97,232.91,2.14]
[1732710446299,10.62138316,233.0,232.91,2.14]
[1732710448801,10.62138316,233.03,232.91,2.14]
[1732710449102,2.14,233.06,232.91,2.14]
[1732710449103,12.76138316,233.06,232.91,2.14]
[1732710449296,10.62138316,233.06,232.91,12.76138316]
[1732710449503,12.76138316,233.09,232.91,12.76138316]
[1732710450203,10.62138316,233.06,232.91,12.76138316]
[1732710450403,10.62138316,233.09,232.94,10.62138316]
[1732710451897,12.85,233.19,232.97,10.62138316]
[1732710452101,10.62138316,233.16,233.0,10.62138316]
[1732710452300,10.62138316,233.16,233.06,2.1448]
[1732710452500,9.10872868,233.15,233.06,4.2848]
[1732710452701,10.62138316,233.16,233.06,4.2848]
[1732710452899,10.62138316,233.13,233.06,2.14]
[1732710453607,10.62138316,233.1,233.06,2.14]
[1732710453801,10.62138316,233.1,233.01,2.14]
[1732710456501,10.62138316,233.1,233.01,4.2852]
[1732710458202,10.62138316,233.07,233.01,2.14]
[1732710458607,10.62138316,233.07,232.92,1.07334319]
[1732710458804,10.62138316,233.07,232.91,10.62138316]
[1732710459108,10.62138316,233.07,232.96,2.1457]
[1732710459505,2.14,233.08,232.96,2.1457]
[1732710459506,10.62138316,233.04,232.96,2.1457]
[1732710460105,10.62138316,233.04,232.97,2.1456]
[1732710460310,10.62138316,233.04,232.94,2.14]
[1732710460508,10.62138316,233.04,232.93,2.14]
[1732710461507,10.62138316,233.04,232.93,4.2859]
[1732710461708,10.62138316,233.04,232.93,2.14]
[1732710462601,10.62138316,233.04,232.93,4.286]
[1732710463511,10.62138316,233.04,232.94,2.1459]
[1732710465512,2.1449,233.06,232.95,2.1458]
[1732710465709,9.09522341,233.05,232.93,2.14]
[1732710466010,10.62138316,233.06,232.93,2.14]
[1732710466914,10.62138316,233.06,232.95,2.1457]
[1732710467311,10.62138316,233.06,232.93,2.14]
[1732710468014,10.62138316,233.06,232.96,2.1457]
[1732710468317,6.79525925,233.02,232.96,2.1457]
[1732710469615,12.85,233.14,232.98,6.79525925]
[1732710469821,6.79525925,233.07,232.98,8.93525925]
[1732710470208,2.14,233.12,233.0,6.79525925]
[1732710470405,6.79525925,233.08,233.0,6.79525925]
[1732710470815,6.79525925,233.08,233.02,2.1452]
[1732710473017,6.79525925,233.08,233.03,2.1451]
[1732710473209,17.1351,233.31,233.02,6.79525925]
[1732710473414,12.85,233.29,233.03,2.14]
[1732710473609,6.79525925,233.11,233.04,6.79525925]
[1732710474017,6.79525925,233.11,233.06,2.1448]
[1732710474908,6.79525925,233.11,233.04,6.79525925]
[1732710475113,6.79525925,233.11,233.05,2.1449]
[1732710475516,6.79525925,233.13,233.06,2.1447]
[1732710475810,6.79525925,233.13,233.04,6.79525925]
[1732710476408,6.79525925,233.13,233.07,2.1446]
[1732710477322,6.79525925,233.13,233.08,2.14]
[1732710477521,6.79525925,233.11,232.97,1.0730371]
[1732710477721,6.79525925,233.06,232.97,2.14]
[1732710477925,6.79525925,233.06,232.99,6.79525925]
[1732710478129,6.79525925,233.06,233.01,2.1452]
[1732710478727,6.79525925,233.08,232.99,6.79525925]
[1732710479021,6.79525925,233.08,233.02,2.1451]
[1732710479226,6.79525925,233.08,233.02,4.2851]
[1732710479427,6.79525925,233.08,233.02,2.14]
[1732710480430,10.61171071,233.12,233.02,2.14]
[1732710483232,10.61171071,233.06,232.9,10.61171071]
[1732710483432,10.61171071,233.06,232.91,3.21333743]
[1732710483627,10.61171071,233.06,232.91,2.14]
[1732710484027,10.61171071,233.03,232.94,2.1459]
[1732710484329,10.61171071,233.03,232.95,2.14]
[1732710484729,10.61171071,233.03,232.95,4.2858]
[1732710488130,10.61171071,233.03,232.95,4.2859]
[1732710489331,10.61171071,233.03,232.95,2.14]
[1732710490326,10.61171071,233.06,232.95,2.14]
[1732710490725,10.61171071,233.06,232.96,2.1459]
[1732710490922,10.61171071,233.09,232.95,2.14]
[1732710491426,10.61171071,233.09,232.99,2.1456]
[1732710491827,10.61171071,233.09,232.95,2.14]
[1732710492032,26.03070582,233.14,232.97,10.61171071]
[1732710492033,12.75171071,233.12,232.97,10.61171071]
[1732710492229,26.03070582,233.14,233.0,10.61171071]
[1732710492433,10.61171071,233.16,233.08,2.1448]
[1732710492632,9.09516931,233.15,233.08,4.2848]
[1732710493134,10.61171071,233.16,233.08,2.14]
[1732710495539,10.61171071,233.16,233.08,4.2848]
[1732710496539,2.14,233.18,233.08,4.2848]
[1732710496540,10.61171071,233.19,233.1,2.1446]
[1732710496729,10.61171071,233.22,233.08,2.14]
[1732710496929,17.07302423,233.21,233.09,10.61171071]
[1732710497130,10.61171071,233.22,233.11,2.1445]
[1732710497331,9.10052605,233.21,233.09,10.61171071]
[1732710497639,10.61171071,233.3,233.15,10.61171071]
[1732710497835,9.10913695,233.29,233.18,2.1438]
[1732710498035,17.09110288,233.29,233.16,2.12]
[1732710498636,7.98196593,233.29,233.16,2.12]
[1732710498838,10.61171071,233.3,233.16,2.12]
[1732710499139,10.61171071,233.3,233.19,2.1438]
[1732710499335,9.10364998,233.29,233.19,2.1438]
[1732710499534,10.61171071,233.3,233.19,2.1438]
[1732710499738,10.61171071,233.3,233.2,2.1437]
[1732710499947,26.00968389,233.35,233.21,12.73171071]
[1732710500136,26.00968389,233.35,233.22,2.12]
[1732710500340,26.00968389,233.35,233.23,2.12]
[1732710500740,2.1414,233.45,233.3,2.1428]
[1732710500943,10.61171071,233.41,233.31,2.12]
[1732710502134,9.07821168,233.4,233.31,2.12]
[1732710502340,10.61171071,233.38,233.31,2.12]
[1732710506339,10.61171071,233.35,233.25,2.1432]
[1732710506544,10.61171071,233.32,233.22,2.12]
[1732710506839,10.61171071,233.32,233.23,2.12]
[1732710507140,10.61171071,233.32,233.22,2.12]
[1732710507338,2.1423,233.35,233.22,2.12]
[1732710507339,10.61171071,233.29,233.22,2.12]
[1732710507540,10.61171071,233.26,233.22,2.12]
[1732710507843,10.61171071,233.26,233.18,2.12]
[1732710508040,10.61171071,233.26,233.11,10.61171071]
[1732710508041,10.61171071,233.26,233.17,2.12]
[1732710508949,10.61171071,233.26,233.17,4.264]
[1732710509343,10.61171071,233.26,233.17,2.12]
[1732710511149,10.61171071,233.2,233.1,2.12]
[1732710511338,10.61171071,233.17,233.09,2.12]
[1732710511539,10.61171071,233.17,233.08,2.12]
[1732710516042,10.61171071,233.17,233.05,2.1451]
[1732710516043,10.61171071,233.17,232.92,21.00633145]
[1732710516244,10.61171071,233.13,232.93,2.12]
[1732710516552,10.61171071,233.13,233.01,2.1454]
[1732710516752,10.61171071,233.13,233.02,2.12]
[1732710516952,10.61171071,233.13,233.02,4.2654]
[1732710517849,2.12,233.14,233.02,4.2654]
[1732710517850,2.10788019,233.17,233.02,2.12]
[1732710518053,10.61171071,233.16,233.05,2.1451]
[1732710518353,10.61171071,233.16,233.02,2.12]
[1732710518948,2.1442,233.15,233.02,2.12]
[1732710519249,10.61171071,233.16,233.03,2.1453]
[1732710519453,10.61171071,233.1,233.02,2.12]
[1732710521855,10.61171071,233.1,232.99,2.1456]
[1732710522156,10.61171071,233.1,233.0,2.1455]
[1732710522650,2.12,233.17,233.03,10.61171071]
[1732710522850,103.16007761,233.32,233.04,2.12]
[1732710522851,12.73171071,233.18,233.04,2.12]
[1732710523059,10.61171071,233.18,233.04,2.12]
[1732710523353,10.61171071,233.18,233.07,2.1448]
[1732710524154,12.75561071,233.18,233.07,2.1448]
[1732710524355,10.61171071,233.18,233.07,2.1448]
[1732710525351,12.85,233.17,233.04,2.12]
[1732710525752,14.9941,233.17,233.04,2.12]
[1732710526155,12.85,233.11,233.04,2.12]
[1732710527156,14.9945,233.11,233.04,2.12]
[1732710527351,12.85,233.11,233.04,2.12]
[1732710527750,10.61171071,233.09,233.0,2.1455]
[1732710527949,10.61171071,233.09,232.99,2.12]
[1732710528351,10.61171071,233.09,233.01,2.1455]
[1732710528960,10.61171071,233.09,232.99,2.12]
[1732710529256,10.61171071,233.09,233.0,2.1455]
[1732710531454,10.61171071,233.09,232.89,0.30556]
[1732710531455,23.46171071,233.09,232.89,0.30556]
[1732710531646,10.61171071,233.06,232.94,2.1461]
[1732710531846,10.61171071,233.06,232.94,4.2661]
[1732710532051,10.61171071,233.06,232.94,2.12]
[1732710532256,10.61171071,233.06,232.95,2.1459]
[1732710532852,10.61171071,233.06,232.94,2.12]
[1732710533057,10.61171071,233.02,232.89,0.30556]
[1732710533556,10.61171071,233.02,232.91,2.1463]
[1732710533859,10.61171071,233.02,232.89,0.30556]
[1732710535158,10.61171071,233.02,232.91,2.1464]
[1732710535959,10.61171071,233.02,232.9,2.1465]
[1732710537256,10.61171071,233.02,232.91,2.1464]
[1732710537858,10.61171071,233.02,232.9,2.1464]
[1732710538064,10.61171071,233.02,232.89,0.30556]
[1732710538456,10.61171071,233.02,232.91,2.1464]
[1732710539763,10.61171071,232.99,232.89,0.30556]
[1732710539959,10.61171071,232.99,232.9,2.12]
[1732710541061,10.61171071,232.99,232.89,2.45206]
[1732710541259,10.61171071,232.99,232.9,2.12]
[1732710541761,10.61171071,232.99,232.91,2.1464]
[1732710542155,10.61171071,232.99,232.9,2.12]
[1732710542361,10.61171071,232.99,232.9,4.2665]
[1732710542959,10.61171071,232.96,232.89,2.12]
[1732710543456,10.61171071,232.93,232.75,1.07369346]
[1732710543665,10.61171071,232.9,232.76,12.73171071]
[1732710543858,101.0,233.25,232.86,10.61171071]
[1732710544063,10.61171071,233.04,232.89,10.61171071]
[1732710544265,10.61171071,233.04,232.9,2.12]
[1732710544461,10.61171071,233.04,232.95,2.1459]
[1732710544760,10.61171071,233.04,232.95,2.12]
[1732710545860,12.85,233.32,233.02,2.1454]
[1732710546161,10.61171071,233.15,233.03,2.12]
[1732710546354,10.61171071,233.15,233.0,10.61171071]
[1732710546355,10.61171071,233.15,233.04,2.12]
[1732710546965,10.61171071,233.12,233.04,2.12]
[1732710547459,10.61171071,233.09,232.88,1.07357411]
[1732710547663,10.61171071,233.06,232.91,10.61171071]
[1732710547855,10.61171071,233.06,232.96,2.1459]
[1732710548162,2.12,233.11,232.93,10.61171071]
[1732710548364,10.61171071,233.09,232.94,2.12]
[1732710548962,10.61171071,233.09,232.98,2.1457]
[1732710549161,10.61171071,233.09,232.99,2.12]
[1732710550456,10.61171071,233.09,232.99,4.2656]
[1732710550662,10.61171071,233.09,232.99,2.12]
[1732710551358,10.61171071,233.09,233.0,2.1455]
[1732710551663,10.61171071,233.09,232.99,2.12]
[1732710551864,2.14426865,233.17,232.99,2.12]
[1732710552063,10.61171071,233.14,232.99,2.12]
[1732710552264,10.61171071,233.28,233.04,10.61171071]
[1732710552265,36.64670719,233.18,233.04,10.61171071]
[1732710552566,26.03499648,233.18,233.05,2.12]
[1732710552966,26.03499648,233.18,233.11,2.1445]
[1732710553265,26.03499648,233.18,233.12,2.12]
[1732710554065,36.64670719,233.18,233.12,2.12]
[1732710554268,36.64670719,233.18,233.01,1.07294333]
[1732710554269,10.61171071,233.15,233.01,2.12]
[1732710554462,10.61171071,233.09,233.01,2.12]
[1732710554667,10.61171071,233.12,233.02,2.12]
[1732710554864,10.61171071,233.12,233.03,2.12]
[1732710556069,10.61171071,233.12,233.05,2.1451]
[1732710556267,10.61171071,233.12,233.03,2.12]
[1732710556468,10.61171071,233.09,233.03,2.12]
[1732710556768,10.61171071,233.09,233.02,2.14]
[1732710556970,10.61171071,233.12,233.01,2.14]
[1732710557270,10.61171071,233.12,233.03,2.1452]
[1732710557474,26.03499648,233.18,233.03,10.61171071]
[1732710558672,26.03499648,233.18,233.09,2.1446]
[1732710558872,26.03499648,233.18,233.1,2.14]
[1732710559875,10.61171071,233.13,233.06,2.14]
[1732710560076,10.61171071,233.13,233.05,2.14]
[1732710560570,10.61171071,233.13,232.97,10.61171071]
[1732710560571,12.75611071,233.13,233.03,2.14]
[1732710560771,10.61171071,233.1,233.01,2.14]
[1732710562164,10.61171071,233.07,232.9,10.61171071]
[1732710562370,10.61171071,233.07,232.91,2.14]
[1732710562563,10.61171071,233.07,232.97,2.1458]
[1732710562770,10.61171071,233.07,232.96,2.14]
[1732710563172,4.2852,233.33,232.99,10.61171071]
[1732710563469,10.61171071,233.16,232.99,10.61171071]
[1732710563670,17.06651098,233.15,232.99,10.61171071]
[1732710563874,9.09599154,233.14,232.99,10.61171071]
[1732710564172,7.97051944,233.15,232.99,10.61171071]
[1732710564472,7.97051944,233.14,232.99,10.61171071]
[1732710564678,10.61171071,233.16,233.05,2.1451]
[1732710564978,17.07603168,233.15,233.05,4.2851]
[1732710565271,10.61171071,233.16,233.05,4.2851]
[1732710565475,9.10423977,233.15,233.05,12.75171071]
[1732710565670,9.10614224,233.17,233.05,12.75171071]
[1732710565970,7.97766396,233.15,233.11,2.1445]
[1732710566167,10.61171071,233.16,233.03,2.14]
[1732710566373,10.61171071,233.1,233.03,2.14]
[1732710567374,10.61171071,233.13,233.03,2.14]
[1732710567574,9.10372791,233.12,233.03,2.14]
[1732710567876,10.61171071,233.13,233.03,2.14]
[1732710568465,26.03499648,233.18,233.03,2.14]
[1732710568669,9.10507559,233.17,233.05,10.61171071]
[1732710569574,26.03499648,233.18,233.08,10.61171071]
[1732710569775,26.03499648,233.18,233.09,2.14]
[1732710571173,10.61171071,233.16,233.05,2.14]
[1732710571670,10.61171071,233.16,233.05,4.2851]
[1732710572179,10.61171071,233.13,233.03,2.1452]
[1732710572374,16.97827783,233.15,233.03,2.14]
[1732710573474,19.12247783,233.15,233.03,2.14]
[1732710573677,16.97827783,233.15,233.03,2.14]
[1732710573980,9.10586452,233.14,233.03,2.14]
[1732710574279,9.10819304,233.19,233.03,2.14]
[1732710574475,11.25175828,233.18,233.06,2.145]
[1732710574673,9.10775828,233.17,233.06,2.145]
[1732710575077,2.144,233.18,233.06,2.145]
[1732710575278,4.284,233.18,233.06,2.145]
[1732710575480,2.14,233.18,233.03,2.14]
[1732710576584,2.14,233.18,233.07,2.1448]
[1732710576880,16.97827783,233.2,233.08,2.14]
[1732710577075,16.97827783,233.2,233.09,2.14]
[1732710577276,7.97706331,233.19,233.09,4.2847]
[1732710578183,9.10176112,233.18,233.09,4.2847]
[1732710578480,16.97827783,233.2,233.09,4.2847]
[1732710578881,17.08021437,233.19,233.09,4.2847]
[1732710579073,9.10356212,233.19,233.09,4.2847]
[1732710579278,7.97597779,233.18,233.09,4.2847]
[1732710579989,9.10356212,233.19,233.09,4.2847]
[1732710580287,9.12025026,233.18,233.09,4.2847]
[1732710580782,9.12025026,233.18,233.09,2.14]
[1732710581085,9.10356212,233.19,233.09,2.14]
[1732710581681,9.10356212,233.19,233.11,2.1445]
[1732710582185,16.97827783,233.17,233.09,2.14]
[1732710582375,16.97827783,233.17,233.1,2.1446]
[1732710582580,9.12172905,233.18,233.09,2.14]
[1732710583176,9.12172905,233.18,233.04,2.14]
[1732710583379,2.14,233.22,233.04,2.14]
[1732710583380,16.97827783,233.17,233.04,2.14]
[1732710583784,16.97827783,233.17,233.08,2.1447]
[1732710584185,16.97827783,233.13,233.0,0.16535]
[1732710584381,16.97827783,233.13,233.01,2.14]
[1732710584686,9.1202929,233.12,233.01,2.14]
[1732710584889,16.97827783,233.11,233.01,2.14]
[1732710585280,16.97827783,233.15,233.05,2.145]
[1732710585481,9.12162478,233.14,233.06,2.14]
[1732710586287,16.97827783,233.11,233.0,0.16535]
[1732710586487,16.97827783,233.11,233.01,2.22]
[1732710587284,9.12990888,233.1,233.0,2.38535]
[1732710587488,16.97827783,233.07,233.0,0.16535]
[1732710588186,9.13191987,233.06,233.0,0.16535]
[1732710588591,11.27691987,233.06,233.0,0.16535]
[1732710588787,9.13191987,233.05,233.0,0.16535]
[1732710588986,17.13238619,233.05,233.0,0.16535]
[1732710589193,8.00046632,233.05,233.0,0.16535]
[1732710589596,9.1319405,233.04,233.0,0.16535]
[1732710590592,16.97827783,233.03,233.0,0.16535]
[1732710590992,2.22,233.02,232.95,2.14594159]
[1732710592194,9.50246437,233.01,232.95,1.07297687]
[1732710592400,9.50246437,233.01,232.91,2.1463]
[1732710592999,4.3654,233.02,232.91,2.1463]
[1732710593998,2.22,233.02,232.91,2.1463]
[1732710594195,16.97827783,232.99,232.89,2.22]
[1732710594395,10.6256854,232.97,232.89,2.22]
[1732710594800,12.8456854,232.97,232.8,2.1474]
[1732710595005,10.6256854,232.94,232.79,10.6256854]
[1732710595208,10.6256854,232.91,232.8,2.22]
[1732710595502,10.6256854,232.91,232.81,2.22]
[1732710596204,12.8456854,232.97,232.82,10.6256854]
[1732710596502,10.6256854,232.97,232.83,2.22]
[1732710596695,10.6256854,232.97,232.84,2.22]
[1732710596900,10.6256854,232.97,232.86,2.1468]
[1732710597098,10.6256854,232.97,232.84,2.22]
[1732710597599,10.6256854,232.94,232.84,2.22]
[1732710598392,10.6256854,232.94,232.79,10.6256854]
[1732710598393,10.6256854,232.94,232.83,2.22]
[1732710598794,12.7718854,232.94,232.83,2.22]
[1732710599000,10.6256854,232.91,232.83,2.22]
[1732710599608,10.6256854,232.91,232.8,2.1474]
[1732710599901,10.6256854,232.91,232.8,2.22]
[1732710600100,12.8456854,232.94,232.8,2.22]
[1732710600498,2.1462,232.93,232.8,4.3673]
[1732710600799,10.6256854,232.91,232.8,4.3673]
[1732710601004,10.6256854,232.91,232.8,2.22]
[1732710601405,2.22,232.94,232.8,2.22]
[1732710601601,10.6256854,232.93,232.8,2.22]
[1732710601806,12.7719854,232.93,232.8,2.22]
[1732710602006,12.7719854,232.93,232.81,2.22]
[1732710602408,12.7719854,232.93,232.81,4.3672]
[1732710602705,12.8456854,232.96,232.81,2.22]
[1732710603010,10.6256854,232.93,232.81,2.22]
[1732710603710,10.6256854,232.96,232.81,2.22]
[1732710604210,4.3658,232.97,232.81,2.22]
[1732710604409,10.6256854,232.96,232.81,2.22]
[1732710604907,14.96678353,233.11,232.81,2.22]
[1732710604908,2.1455,233.01,232.9,2.1464]
[1732710605107,10.6256854,232.99,232.9,2.1464]
[1732710605504,10.6256854,232.99,232.91,2.1463]
[1732710605701,12.8456854,233.02,232.88,2.22]
[1732710606111,12.8456854,233.02,232.91,2.1463]
[1732710606810,12.8456854,233.02,232.88,2.22]
[1732710607209,10.6256854,233.02,232.88,2.22]
[1732710608510,10.6256854,233.02,232.9,2.1464]
[1732710608718,10.6256854,233.02,232.88,2.22]
[1732710608910,2.22,233.04,232.92,10.6256854]
[1732710609111,2.22,233.04,232.95,2.1459]
[1732710609310,10.6256854,233.05,232.93,2.22]
[1732710609807,10.6256854,233.08,232.93,2.22]
[1732710610006,12.8456854,233.08,232.93,2.22]
[1732710610206,12.8456854,233.08,232.96,2.1459]
[1732710610415,12.8456854,233.08,232.93,2.22]
[1732710610918,2.22,233.1,232.95,10.6256854]
[1732710611216,10.6256854,233.11,232.95,10.6256854]
[1732710611412,10.6256854,233.11,233.0,2.1455]
[1732710611617,10.6256854,233.11,232.99,2.22]
[1732710611821,10.6256854,233.14,233.0,2.22]
[1732710612013,10.6256854,233.14,233.03,2.1453]
[1732710612216,2.22,233.17,233.01,10.6256854]
[1732710612217,10.6256854,233.17,233.01,10.6256854]
[1732710612518,10.6256854,233.17,233.05,2.145]
[1732710612719,2.15500502,233.2,233.1,10.6256854]
[1732710613015,10.6256854,233.28,233.13,10.6256854]
[1732710613218,10.6256854,233.28,233.14,2.22]
[1732710613619,10.6256854,233.28,233.17,2.1439]
[1732710613819,10.6256854,233.31,233.16,10.6256854]
[1732710614123,9.46206712,233.27,233.16,10.6256854]
[1732710614319,9.46206712,233.27,233.19,2.1438]
[1732710614514,9.46206712,233.27,233.2,2.22]
[1732710614714,9.46206712,233.33,233.2,2.22]
[1732710614920,9.46206712,233.33,233.2,4.3637]
[1732710615723,9.46206712,233.33,233.2,2.22]
[1732710615921,9.46206712,233.37,233.2,2.22]
[1732710616117,7.95475299,233.36,233.22,16.95135805]
[1732710616318,9.46206712,233.35,233.22,16.95135805]
[1732710616521,9.46206712,233.37,233.22,16.95135805]
[1732710616726,9.46206712,233.37,233.27,2.143]
[1732710617015,9.46206712,233.37,233.28,2.24]
[1732710617221,290.96999579,233.38,233.29,2.24]
[1732710617421,16.95135805,233.47,233.29,2.24]
[1732710617724,17.38389219,233.43,233.29,2.24]
[1732710617919,9.44044054,233.42,233.29,2.24]
[1732710618121,16.95135805,233.48,233.29,2.24]
[1732710618321,17.38833959,233.47,233.33,2.1424]
[1732710618522,9.44287732,233.46,233.3,16.95135805]
[1732710618720,16.95135805,233.39,233.27,2.24]
[1732710618921,2.1421,233.38,233.26,2.24]
[1732710619124,16.95135805,233.39,233.26,2.24]
[1732710619828,9.42382484,233.38,233.26,2.24]
[1732710620414,9.42382484,233.38,232.93,71.02546193]
[1732710620415,16.95135805,233.31,232.93,71.02546193]
[1732710620619,16.95135805,233.27,233.07,16.95135805]
[1732710620815,16.95135805,233.27,233.08,2.24]
[1732710621221,16.95135805,233.27,233.11,2.1445]
[1732710621419,16.95135805,233.23,233.1,2.24]
[1732710621616,19.19135805,233.23,233.09,2.24]
[1732710621819,2.24,233.23,233.09,2.24]
[1732710622224,16.95135805,233.18,232.96,25.91515397]
[1732710622425,16.95135805,233.1,232.96,17.75636548]
[1732710622721,2.24,233.09,232.94,47.35030795]
[1732710622917,16.95135805,233.14,232.94,47.35030795]
[1732710623121,2.24,233.13,232.94,47.35030795]
[1732710623320,16.95135805,233.14,232.94,64.301666]
[1732710623628,19.19135805,233.14,232.94,64.301666]
[1732710623823,2.24,233.14,232.94,64.301666]
[1732710624030,2.24,233.14,232.94,16.95135805]
[1732710624430,16.95135805,233.18,232.94,16.95135805]
[1732710624631,16.95135805,233.18,233.03,2.1452]
[1732710624929,2.24,233.17,233.04,2.24]
[1732710625326,16.95135805,233.18,233.04,2.24]
[1732710626539,2.1448,233.09,232.91,2.1463]
[1732710626828,4.3848,233.09,232.91,2.24]
[1732710627530,16.95135805,233.06,232.9,2.24]
[1732710627733,16.95135805,233.02,232.88,2.24]
[1732710627927,16.95135805,233.02,232.89,2.1465]
[1732710628122,16.95135805,233.02,232.88,2.24]
[1732710630233,2.24,233.03,232.88,2.24]
[1732710630538,19.19135805,233.02,232.83,16.95135805]
[1732710630834,19.19135805,233.02,232.83,19.19135805]
[1732710631134,19.19135805,233.02,232.9,2.1465]
[1732710631338,2.24,233.04,232.89,2.24]
[1732710631531,16.95135805,233.06,232.9,2.24]
[1732710631532,2.24,233.05,232.9,2.24]
[1732710631733,16.95135805,233.1,232.94,2.146]
[1732710632035,2.24,233.12,232.91,16.95135805]
[1732710632431,4.3845,233.12,232.97,2.1458]
[1732710632736,16.95135805,233.03,232.73,2.24]
[1732710632931,16.95135805,232.99,232.79,16.95135805]
[1732710633534,16.95135805,232.99,232.8,2.42]
[1732710633837,16.95135805,232.99,232.79,16.95135805]
[1732710634037,16.95135805,232.99,232.8,2.42]
[1732710634234,16.95135805,232.99,232.84,2.147]
[1732710634738,16.95135805,232.99,232.69,12.88]
[1732710634739,12.88,232.98,232.73,1.07385296]
[1732710634935,2.1464,232.91,232.77,2.1476]
[1732710635236,16.95135805,232.9,232.77,2.1476]
[1732710636138,16.95135805,232.9,232.76,4.5677]
[1732710636139,19.09785805,232.9,232.76,4.5677]
[1732710636330,16.95135805,232.9,232.76,4.5677]
[1732710637536,19.09785805,232.9,232.76,4.5677]
[1732710638034,16.95135805,232.98,232.76,2.42]
[1732710638232,21.51715805,232.98,232.79,16.95135805]
[1732710638431,19.37135805,232.98,232.79,16.95135805]
[1732710638835,2.42,232.98,232.79,16.95135805]
[1732710639034,2.42,232.98,232.86,2.1468]
[1732710639234,2.42,232.98,232.86,2.42]
[1732710639438,2.42,233.0,232.86,2.42]
[1732710640336,2.42,233.0,232.87,2.1467]
[1732710641540,2.1463,232.92,232.78,2.1475]
[1732710641740,2.42,232.91,232.72,2.42]
[1732710642231,19.09785805,232.9,232.75,2.1478]
[1732710642434,16.95135805,232.9,232.75,2.1478]
[1732710643037,16.95135805,232.9,232.75,4.5678]
[1732710643241,2.1467,232.88,232.75,4.5678]
[1732710643540,2.1467,232.88,232.75,2.42]
[1732710643745,2.1467,232.88,232.74,2.42]
[1732710643943,16.95135805,232.9,232.74,2.42]
[1732710645040,2.1467,232.88,232.76,2.1477]
[1732710645941,2.1467,232.88,232.77,2.1477]
[1732710646550,2.1469,232.86,232.75,2.1478]
[1732710647046,16.95135805,232.9,232.75,2.1478]
[1732710647243,2.1467,232.88,232.76,2.1477]
[1732710648348,16.95135805,232.9,232.74,2.42]
[1732710648648,2.1468,232.87,232.77,2.1477]
[1732710649251,2.1466,232.89,232.79,2.1474]
[1732710649548,16.95135805,232.9,232.74,2.42]
[1732710649745,19.37135805,232.9,232.79,2.1474]
[1732710649945,19.37135805,232.9,232.75,2.42]
[1732710650346,16.95135805,232.9,232.75,2.42]
[1732710650552,19.37135805,232.9,232.75,2.42]
[1732710650949,19.37135805,232.9,232.8,2.1473]
[1732710651150,16.95135805,232.98,232.81,2.42]
[1732710651351,15.3,233.0,232.82,2.42]
[1732710652355,16.95135805,232.95,232.83,2.147]
[1732710652551,16.95135805,232.95,232.82,2.42]
[1732710652952,2.42,232.94,232.82,2.42]
[1732710653350,16.95135805,232.91,232.77,2.42]
[1732710653950,19.09775805,232.91,232.81,2.1473]
[1732710654354,19.09775805,232.91,232.77,2.42]
[1732710654763,16.95135805,232.91,232.77,2.42]
[1732710656156,16.95135805,232.91,232.83,2.1471]
[1732710656950,2.42,232.92,232.84,2.147]
[1732710657563,16.95135805,232.95,232.77,2.42]
[1732710657864,16.95135805,232.95,232.75,16.95135805]
[1732710657865,16.95135805,232.95,232.86,2.1468]
[1732710658370,16.95135805,232.95,232.87,2.1467]
[1732710658561,2.18537415,233.14,232.85,16.95135805]
[1732710658870,16.95135805,233.08,232.85,16.95135805]
[1732710659666,19.09615805,233.08,232.97,2.1458]
[1732710659862,19.09615805,233.08,232.98,2.42]